bitfinex/quotes_BTCUSD_20210101
["timestamp","ask_amount","ask_price","bid_price","bid_amount"]
[1609476366512,0.59376446,29221.0,29220.0,4.187249]
[1609476366914,0.59376446,29221.0,29220.0,0.537249]
[1609476367212,0.58376446,29221.0,29220.0,2.287249]
[1609476367414,0.43817537,29221.0,29220.0,2.577249]
[1609476368211,0.43317537,29221.0,29220.0,2.577249]
[1609476368873,0.43317537,29221.0,29220.0,3.08437599]
[1609476369277,0.43317537,29221.0,29220.0,3.11630025]
[1609476369479,0.43317537,29221.0,29220.0,5.01630025]
[1609476369874,0.43317537,29221.0,29220.0,3.11630025]
[1609476370480,0.57376446,29221.0,29220.0,5.01630025]
[1609476371680,0.0006,29226.0,29220.0,5.01630025]
[1609476371886,0.0006,29226.0,29221.0,0.82893001]
[1609476372085,0.0006,29226.0,29225.0,3.562249]
[1609476372284,0.0006,29226.0,29225.0,4.94996599]
[1609476372498,0.0006,29226.0,29225.0,5.27176901]
[1609476374101,0.0006,29226.0,29225.0,4.76464202]
[1609476374503,0.0006,29226.0,29225.0,5.27176901]
[1609476375707,0.0006,29226.0,29225.0,4.76464202]
[1609476376509,0.0006,29226.0,29225.0,5.27176901]
[1609476376809,0.0006,29226.0,29225.0,4.79656628]
[1609476377707,0.0006,29231.0,29228.0,1.2]
[1609476378011,0.00176452,29235.0,29234.0,4.65]
[1609476378255,0.00156452,29235.0,29234.0,4.230129]
[1609476378448,0.14138909,29237.0,29235.0,2.68405202]
[1609476378642,0.0008,29237.0,29235.0,2.817249]
[1609476379054,0.106801,29240.0,29237.0,0.32180302]
[1609476379243,0.106801,29240.0,29238.0,0.362249]
[1609476379749,0.101801,29240.0,29237.0,0.15]
[1609476380344,0.59467401,29240.0,29236.0,0.06072]
[1609476380652,0.101801,29240.0,29234.0,0.19]
[1609476380844,0.59467401,29240.0,29234.0,0.19]
[1609476381052,0.49287301,29239.0,29232.0,0.32180302]
[1609476381250,0.49287301,29239.0,29233.0,0.362249]
[1609476381454,0.59467401,29240.0,29233.0,0.362249]
[1609476381654,0.101801,29240.0,29233.0,0.362249]
[1609476382047,0.096801,29240.0,29233.0,0.362249]
[1609476382550,0.49287301,29239.0,29233.0,0.362249]
[1609476383653,0.58967401,29240.0,29233.0,0.362249]
[1609476384594,0.58967401,29240.0,29231.0,0.32180302]
[1609476384595,0.49287301,29239.0,29231.0,0.32180302]
[1609476384805,0.49287301,29237.0,29230.0,0.6555]
[1609476385002,0.69287301,29236.0,29230.0,0.6555]
[1609476385196,0.69287301,29235.0,29226.0,0.2821]
[1609476385501,0.69287301,29234.0,29221.0,0.6889]
[1609476385701,0.69287301,29234.0,29222.0,0.362249]
[1609476385702,0.2,29233.0,29222.0,0.362249]
[1609476385896,0.69287301,29233.0,29223.0,0.155]
[1609476386098,0.34058845,29236.0,29224.0,0.362249]
[1609476386293,0.69287301,29235.0,29223.0,0.155]
[1609476386601,0.5127,29236.0,29224.0,1.38207599]
[1609476386799,0.69287301,29236.0,29225.0,0.32180302]
[1609476386998,0.69287301,29236.0,29226.0,0.597249]
[1609476386999,0.49287301,29236.0,29226.0,0.597249]
[1609476387201,0.396501,29240.0,29227.0,0.50712699]
[1609476387502,0.49287301,29239.0,29228.0,0.527249]
[1609476387996,0.58967401,29240.0,29229.0,0.6693]
[1609476388302,0.096801,29240.0,29230.0,1.049849]
[1609476388595,0.096801,29240.0,29231.0,0.40192426]
[1609476388794,0.58967401,29240.0,29232.0,0.362249]
[1609476388996,0.49287301,29239.0,29232.0,0.362249]
[1609476389424,0.49287301,29239.0,29231.0,0.07754]
[1609476389824,0.49287301,29239.0,29229.0,0.6693]
[1609476390127,0.5127,29237.0,29230.0,0.362249]
[1609476390321,0.15,29235.0,29230.0,0.362249]
[1609476391420,0.29058845,29235.0,29230.0,0.362249]
[1609476392226,0.49287301,29234.0,29229.0,0.6693]
[1609476392426,0.69287301,29234.0,29229.0,0.6693]
[1609476392726,0.29058845,29235.0,29229.0,0.6693]
[1609476392727,0.83787301,29233.0,29229.0,0.6693]
[1609476392923,0.345,29233.0,29229.0,0.6693]
[1609476393167,0.24888,29235.0,29229.0,0.6693]
[1609476393327,0.2,29234.0,29229.0,0.6693]
[1609476393525,0.24888,29235.0,29229.0,0.6693]
[1609476393835,0.34058845,29237.0,29229.0,0.6693]
[1609476394028,0.5128,29232.0,29229.0,0.6693]
[1609476394229,0.7128,29232.0,29229.0,0.6693]
[1609476394526,0.65338845,29232.0,29230.0,0.32514]
[1609476394927,0.14058845,29232.0,29230.0,0.32514]
[1609476395672,0.14058845,29234.0,29230.0,0.32514]
[1609476395871,0.15,29233.0,29230.0,0.32514]
[1609476396075,0.15,29233.0,29231.0,0.362249]
[1609476396283,0.15,29233.0,29230.0,0.32514]
[1609476396480,0.15,29233.0,29231.0,0.01785627]
[1609476396676,0.29058845,29233.0,29231.0,0.38010527]
[1609476396879,0.29058845,29233.0,29231.0,0.01785627]
[1609476397279,0.29058845,29233.0,29232.0,0.912249]
[1609476397577,0.28058845,29233.0,29232.0,0.912249]
[1609476398179,0.65328845,29234.0,29232.0,0.362249]
[1609476398376,0.65328845,29234.0,29231.0,0.01785627]
[1609476398576,0.39058845,29234.0,29232.0,0.362249]
[1609476400620,0.49287301,29233.0,29232.0,0.362249]
[1609476400819,0.78846146,29233.0,29231.0,0.01785627]
[1609476401218,0.155,29232.0,29231.0,0.01785627]
[1609476401622,0.29558845,29233.0,29232.0,1.47014]
[1609476401822,0.29558845,29233.0,29232.0,1.832389]
[1609476402023,0.14058845,29233.0,29232.0,1.832389]
[1609476402226,0.88256752,29235.0,29232.0,0.532389]
[1609476402227,0.14058845,29234.0,29232.0,0.532389]
[1609476402420,0.14058845,29234.0,29232.0,0.17014]
[1609476402722,0.15,29233.0,29232.0,0.17014]
[1609476402922,0.14,29233.0,29232.0,0.17014]
[1609476405744,1.22909408,29235.0,29232.0,0.17014]
[1609476405943,1.02909408,29235.0,29232.0,0.17014]
[1609476406246,1.02315597,29235.0,29232.0,0.17014]
[1609476406647,0.63346146,29234.0,29232.0,0.17014]
[1609476406848,0.225,29233.0,29232.0,0.17014]
[1609476407652,0.85846146,29233.0,29232.0,0.17014]
[1609476408051,1.55846146,29233.0,29232.0,0.17014]
[1609476408448,1.70846146,29233.0,29232.0,0.17014]
[1609476408955,1.71440622,29233.0,29232.0,0.17014]
[1609476409160,4.01440622,29233.0,29232.0,0.17014]
[1609476409362,4.15281074,29233.0,29232.0,0.17014]
[1609476409560,4.15281074,29233.0,29232.0,0.49528]
[1609476409561,4.05015587,29233.0,29232.0,0.49528]
[1609476410076,5.05015587,29233.0,29232.0,0.49528]
[1609476410476,5.57015587,29233.0,29232.0,0.49528]
[1609476410679,5.92915557,29232.0,29231.0,6.27e-06]
[1609476410880,0.69287301,29228.0,29210.0,0.0832662]
[1609476411075,0.348,29223.0,29210.0,0.0832662]
[1609476411328,0.69287301,29222.0,29210.0,0.0832662]
[1609476411529,0.175,29217.0,29209.0,0.6659]
[1609476412024,0.175,29217.0,29210.0,0.362249]
[1609476412327,0.59077,29218.0,29211.0,0.50712699]
[1609476412629,0.59077,29218.0,29212.0,0.68764356]
[1609476412825,0.5131,29218.0,29212.0,1.19477055]
[1609476413018,0.5131,29218.0,29212.0,1.18977055]
[1609476413418,0.5131,29218.0,29212.0,0.68264356]
[1609476413922,0.5131,29218.0,29213.0,0.50712699]
[1609476414126,0.5131,29218.0,29214.0,0.362249]
[1609476414720,0.5131,29218.0,29212.0,0.32039456]
[1609476414921,0.5131,29218.0,29213.0,0.362249]
[1609476415736,0.7181,29218.0,29213.0,0.362249]
[1609476416237,0.5131,29218.0,29213.0,0.362249]
[1609476416640,0.5131,29218.0,29209.0,0.6659]
[1609476416641,0.49287301,29217.0,29209.0,0.6659]
[1609476417040,0.49287301,29217.0,29210.0,0.362249]
[1609476417041,0.74787301,29217.0,29210.0,0.362249]
[1609476417441,0.49287301,29216.0,29209.0,0.6659]
[1609476417646,0.14,29215.0,29209.0,0.6659]
[1609476417840,0.14,29215.0,29210.0,0.362249]
[1609476418048,0.5132,29213.0,29210.0,0.362249]
[1609476418242,0.15,29212.0,29209.0,0.6659]
[1609476418443,0.15,29212.0,29210.0,0.362249]
[1609476418444,0.33458,29212.0,29210.0,0.362249]
[1609476418639,0.18458,29212.0,29210.0,0.362249]
[1609476419748,0.18458,29212.0,29211.0,3.95238974]
[1609476419950,0.6841,29219.0,29211.0,3.95238974]
[1609476420148,0.6841,29219.0,29216.0,0.32887459]
[1609476420346,0.6841,29219.0,29217.0,0.362249]
[1609476421248,0.513,29220.0,29217.0,0.362249]
[1609476421973,0.15,29218.0,29211.0,3.59832657]
[1609476422171,0.513,29220.0,29212.0,0.362249]
[1609476422375,0.513,29220.0,29218.0,0.01080369]
[1609476422571,0.513,29220.0,29219.0,0.362249]
[1609476423970,0.513,29220.0,29219.0,1.012249]
[1609476424179,0.14058845,29221.0,29219.0,1.51937599]
[1609476424383,0.14058845,29221.0,29220.0,4.51937599]
[1609476424572,0.14058845,29228.0,29221.0,0.32180302]
[1609476424773,0.14058845,29228.0,29221.0,0.82793001]
[1609476425124,0.14058845,29228.0,29227.0,1.062249]
[1609476425379,0.13558845,29228.0,29227.0,1.062249]
[1609476425572,0.5128,29231.0,29227.0,1.247249]
[1609476425769,0.5128,29231.0,29227.0,0.7]
[1609476426384,0.64387301,29230.0,29221.0,0.6671]
[1609476426584,0.5029,29226.0,29221.0,0.6671]
[1609476426790,0.49387301,29225.0,29221.0,0.6671]
[1609476426978,0.69763301,29225.0,29221.0,0.6671]
[1609476427183,0.44387301,29224.0,29221.0,0.6671]
[1609476427782,0.58446106,29224.0,29222.0,0.01427976]
[1609476427981,0.99387301,29223.0,29222.0,0.01427976]
[1609476428179,1.19387301,29223.0,29222.0,0.01427976]
[1609476428484,0.14058805,29224.0,29222.0,0.01427976]
[1609476428681,0.44387301,29224.0,29222.0,0.01427976]
[1609476428919,0.64387301,29224.0,29222.0,0.01427976]
[1609476429118,1.94387301,29223.0,29222.0,0.01427976]
[1609476429421,2.31387301,29223.0,29222.0,0.01427976]
[1609476429619,2.45446106,29223.0,29222.0,0.01427976]
[1609476429927,2.60246106,29223.0,29222.0,0.01427976]
[1609476430224,2.80246106,29223.0,29222.0,0.01427976]
[1609476430525,2.83816087,29223.0,29222.0,0.01427976]
[1609476430720,2.19428786,29223.0,29222.0,0.01427976]
[1609476430922,2.39428786,29223.0,29222.0,0.01427976]
[1609476431620,0.89428786,29223.0,29222.0,0.01427976]
[1609476431820,2.22428786,29223.0,29222.0,0.01427976]
[1609476432523,0.32428786,29223.0,29222.0,0.01427976]
[1609476432920,0.28858805,29223.0,29222.0,0.01427976]
[1609476433125,0.59358805,29223.0,29222.0,0.01427976]
[1609476433722,1.603,29223.0,29222.0,0.01427976]
[1609476434657,0.79358805,29223.0,29222.0,0.01427976]
[1609476435159,0.59358805,29223.0,29222.0,0.01427976]
[1609476435459,0.59358805,29223.0,29222.0,1.87652876]
[1609476435460,0.28358805,29223.0,29222.0,1.87652876]
[1609476435661,0.143,29223.0,29222.0,1.87652876]
[1609476439385,0.143,29223.0,29222.0,0.37652876]
[1609476440689,0.143,29223.0,29222.0,1.37652876]
[1609476441287,0.143,29223.0,29222.0,0.37652876]
[1609476441805,0.143,29223.0,29222.0,0.01427976]
[1609476442002,0.34796,29223.0,29222.0,0.01427976]
[1609476443703,0.48854805,29223.0,29222.0,0.01427976]
[1609476444761,0.143,29223.0,29222.0,2.27652876]
[1609476444963,0.143,29223.0,29222.0,0.37652876]
[1609476446960,0.28358805,29223.0,29222.0,0.37652876]
[1609476447562,0.28358805,29223.0,29222.0,0.97652876]
[1609476449693,0.28358805,29223.0,29222.0,1.52652876]
[1609476449891,0.28358805,29223.0,29222.0,1.75152876]
[1609476451298,0.143,29223.0,29222.0,1.91374876]
[1609476451497,0.143,29223.0,29222.0,2.51374876]
[1609476451794,0.143,29223.0,29222.0,1.91374876]
[1609476452495,0.143,29223.0,29222.0,0.75874876]
[1609476452701,0.143,29223.0,29222.0,0.37152876]
[1609476453430,0.143,29223.0,29222.0,0.37402536]
[1609476454431,0.28358805,29223.0,29222.0,0.37402536]
[1609476456449,0.138,29223.0,29222.0,1.62402536]
[1609476456647,0.138,29223.0,29222.0,0.37402536]
[1609476456847,0.138,29223.0,29222.0,0.65402536]
[1609476457043,0.138,29223.0,29222.0,0.37402536]
[1609476458443,0.138,29223.0,29222.0,2.12402536]
[1609476458979,0.138,29223.0,29222.0,2.43902536]
[1609476459142,0.138,29223.0,29222.0,0.68902536]
[1609476459343,0.138,29223.0,29222.0,0.37402536]
[1609476459543,0.138,29223.0,29222.0,1.37402536]
[1609476459745,0.27858805,29223.0,29222.0,1.37402536]
[1609476462360,0.27858805,29223.0,29222.0,2.02402536]
[1609476462561,0.27858805,29223.0,29222.0,2.32402536]
[1609476462865,0.138,29223.0,29222.0,1.67402536]
[1609476464360,0.138,29223.0,29222.0,2.67402536]
[1609476464559,0.138,29223.0,29222.0,1.67402536]
[1609476464762,0.138,29223.0,29222.0,0.37402536]
[1609476465362,0.138,29223.0,29222.0,0.92402536]
[1609476466363,0.138,29223.0,29222.0,1.67402536]
[1609476466588,0.138,29223.0,29222.0,2.01402536]
[1609476467094,0.138,29223.0,29222.0,0.71402536]
[1609476467292,0.138,29223.0,29222.0,0.37402536]
[1609476467489,0.138,29223.0,29222.0,1.42402536]
[1609476467889,0.138,29223.0,29222.0,1.64691536]
[1609476469388,0.138,29223.0,29222.0,2.00691536]
[1609476470193,0.27858805,29223.0,29222.0,2.00691536]
[1609476471291,0.138,29223.0,29222.0,2.00691536]
[1609476471975,0.138,29223.0,29222.0,2.20691536]
[1609476472177,0.138,29223.0,29222.0,2.16691536]
[1609476472377,0.138,29223.0,29222.0,3.46691536]
[1609476472778,0.138,29223.0,29222.0,2.36691536]
[1609476473078,0.128,29223.0,29222.0,2.36691536]
[1609476473477,0.118,29223.0,29222.0,3.71691536]
[1609476473681,0.14058805,29229.0,29223.0,0.87793001]
[1609476474043,0.14659826,29229.0,29228.0,5.27975264]
[1609476474234,0.14659826,29229.0,29228.0,5.46134264]
[1609476474440,0.00601354,29233.0,29228.0,6.04939389]
[1609476474641,0.00601354,29233.0,29232.0,4.012249]
[1609476474834,0.00601354,29233.0,29232.0,4.312249]
[1609476475239,0.99928528,29235.0,29232.0,4.312249]
[1609476475434,0.99928528,29235.0,29234.0,3.57968978]
[1609476475742,0.99326752,29235.0,29234.0,4.32082878]
[1609476475935,0.99326752,29235.0,29234.0,5.10082878]
[1609476476134,0.99326752,29235.0,29234.0,1.70082878]
[1609476476435,0.99326752,29235.0,29234.0,3.02082878]
[1609476476633,0.99326752,29235.0,29234.0,3.22082878]
[1609476477038,0.99063634,29235.0,29234.0,3.02082878]
[1609476477333,0.99063634,29235.0,29234.0,0.72082878]
[1609476478465,0.99063634,29235.0,29234.0,2.67082878]
[1609476478661,0.99063634,29235.0,29234.0,2.87082878]
[1609476478861,0.99063634,29235.0,29234.0,3.25082878]
[1609476479362,0.99063634,29235.0,29234.0,3.90082878]
[1609476480064,0.99063634,29235.0,29234.0,3.25082878]
[1609476481369,0.99063634,29235.0,29234.0,1.10082878]
[1609476481564,0.99063634,29235.0,29234.0,0.54193878]
[1609476481872,1.09063634,29235.0,29234.0,0.362249]
[1609476482268,1.09063634,29235.0,29233.0,0.31255688]
[1609476482568,0.1,29234.0,29233.0,0.31255688]
[1609476482769,0.1,29234.0,29233.0,0.66980588]
[1609476482770,0.27,29234.0,29233.0,0.66980588]
[1609476483069,0.17,29234.0,29233.0,0.66980588]
[1609476483272,1.12122439,29235.0,29233.0,3.71736588]
[1609476483499,0.98063634,29235.0,29234.0,3.73405202]
[1609476483690,0.98063634,29235.0,29234.0,3.412249]
[1609476484390,1.12122439,29235.0,29234.0,3.737389]
[1609476484592,1.12122439,29235.0,29234.0,4.192389]
[1609476487096,1.12122439,29235.0,29234.0,4.392389]
[1609476487297,1.12122439,29235.0,29234.0,4.192389]
[1609476488002,1.12122439,29235.0,29234.0,1.142389]
[1609476488194,1.12122439,29235.0,29234.0,1.687389]
[1609476489855,1.22122439,29235.0,29234.0,0.687389]
[1609476490157,1.22122439,29235.0,29234.0,0.32514]
[1609476491152,1.6650974,29235.0,29234.0,0.32514]
[1609476491363,2.0650974,29235.0,29234.0,0.32514]
[1609476491561,2.4600974,29235.0,29234.0,0.32514]
[1609476492259,4.1600974,29235.0,29234.0,0.32514]
[1609476492460,2.4600974,29235.0,29234.0,0.32514]
[1609476492659,1.57563634,29235.0,29234.0,0.32514]
[1609476492885,1.57563634,29235.0,29234.0,0.53430427]
[1609476493277,1.37563634,29235.0,29234.0,0.53430427]
[1609476493483,1.51622439,29235.0,29234.0,0.53430427]
[1609476495277,1.12122439,29235.0,29234.0,0.53430427]
[1609476502134,1.26622439,29235.0,29234.0,0.53430427]
[1609476502336,1.26622439,29235.0,29234.0,0.53568439]
[1609476502538,1.26622439,29235.0,29234.0,0.51783091]
[1609476503533,1.12122439,29235.0,29234.0,0.51783091]
[1609476504798,0.98063634,29235.0,29234.0,0.88007991]
[1609476505095,0.98063634,29235.0,29234.0,1.02507991]
[1609476505297,0.98063634,29235.0,29234.0,0.88007991]
[1609476505497,0.98063634,29235.0,29234.0,0.51783091]
[1609476505799,1.12122439,29235.0,29234.0,0.51783091]
[1609476506493,1.12122439,29235.0,29234.0,0.21054439]
[1609476507293,1.28622439,29235.0,29234.0,0.21054439]
[1609476507921,1.38622439,29235.0,29234.0,0.21054439]
[1609476509928,1.58622439,29235.0,29234.0,0.21054439]
[1609476510127,1.38622439,29235.0,29234.0,0.21054439]
[1609476510928,1.28122439,29235.0,29234.0,0.21054439]
[1609476511925,1.38122439,29235.0,29234.0,0.21054439]
[1609476512125,1.28122439,29235.0,29234.0,0.21054439]
[1609476512328,1.38122439,29235.0,29234.0,0.21054439]
[1609476514048,1.21622439,29235.0,29234.0,0.21054439]
[1609476514343,1.21122439,29235.0,29234.0,0.21054439]
[1609476515247,1.11122439,29235.0,29234.0,0.21054439]
[1609476515849,1.11122439,29235.0,29234.0,0.57279339]
[1609476517270,0.97063634,29235.0,29234.0,0.57279339]
[1609476517475,0.97063634,29235.0,29234.0,0.21054439]
[1609476517670,1.11563634,29235.0,29234.0,0.21054439]
[1609476518075,1.11063634,29235.0,29234.0,0.21054439]
[1609476518273,1.25122439,29235.0,29234.0,0.21054439]
[1609476519124,1.35122439,29235.0,29234.0,0.21054439]
[1609476519423,1.25122439,29235.0,29234.0,0.21054439]
[1609476519827,1.35122439,29235.0,29234.0,0.21054439]
[1609476520128,1.35531674,29235.0,29234.0,0.21054439]
[1609476521627,1.25531674,29235.0,29234.0,0.21054439]
[1609476522127,1.24531674,29235.0,29234.0,0.21054439]
[1609476522325,1.10031674,29235.0,29234.0,0.21054439]
[1609476524959,1.27031674,29235.0,29234.0,0.20054439]
[1609476525466,1.27647921,29235.0,29234.0,0.20054439]
[1609476525661,1.27647921,29235.0,29234.0,0.98246865]
[1609476525864,1.10031674,29235.0,29234.0,0.95054439]
[1609476526065,1.10031674,29235.0,29234.0,1.31279339]
[1609476526261,1.10031674,29235.0,29234.0,1.50779339]
[1609476526465,1.10238885,29235.0,29234.0,1.50779339]
[1609476527165,1.10650084,29235.0,29234.0,1.50779339]
[1609476527360,1.10650084,29235.0,29234.0,0.75779339]
[1609476527569,1.10033638,29235.0,29234.0,0.75779339]
[1609476528168,1.10033638,29235.0,29234.0,0.56279339]
[1609476528802,1.10033638,29235.0,29234.0,1.61279339]
[1609476529010,0.95974833,29235.0,29234.0,1.61279339]
[1609476529301,0.95974833,29235.0,29234.0,0.56279339]
[1609476530106,1.10033638,29235.0,29234.0,0.56279339]
[1609476531605,1.10033638,29235.0,29234.0,1.41279339]
[1609476531806,1.10033638,29235.0,29234.0,1.71279339]
[1609476533006,1.09622439,29235.0,29234.0,1.71279339]
[1609476533208,1.10034135,29235.0,29234.0,1.71279339]
[1609476533608,1.09622439,29235.0,29234.0,1.71279339]
[1609476534343,1.09622439,29235.0,29234.0,0.86279339]
[1609476534744,1.09622439,29235.0,29234.0,0.56279339]
[1609476534947,1.1003439,29235.0,29234.0,0.56279339]
[1609476535148,1.2003439,29235.0,29234.0,0.56279339]
[1609476536444,1.2003439,29235.0,29234.0,0.59471765]
[1609476536843,1.2003439,29235.0,29234.0,0.56279339]
[1609476537043,1.37622439,29235.0,29234.0,0.56279339]
[1609476537242,1.24622439,29235.0,29234.0,0.56279339]
[1609476537445,1.14622439,29235.0,29234.0,0.56279339]
[1609476537647,1.14622439,29235.0,29234.0,0.59471765]
[1609476540372,1.14622439,29235.0,29234.0,0.56279339]
[1609476540772,1.1503443,29235.0,29234.0,0.56279339]
[1609476541074,1.14622439,29235.0,29234.0,0.56279339]
[1609476541475,3.7900974,29235.0,29234.0,0.20054439]
[1609476541684,4.60623855,29235.0,29234.0,0.00138012]
[1609476541982,2.40547581,29235.0,29234.0,0.00138012]
[1609476542182,3.32015467,29235.0,29234.0,0.01861991]
[1609476542376,3.31397442,29235.0,29234.0,0.01861991]
[1609476542885,2.91178462,29235.0,29234.0,0.01861991]
[1609476543077,2.90678462,29235.0,29234.0,0.01861991]
[1609476543683,2.86510141,29235.0,29234.0,0.01861991]
[1609476543878,2.9067848,29235.0,29234.0,0.01861991]
[1609476544076,2.7067848,29235.0,29234.0,0.01861991]
[1609476544480,2.51872779,29235.0,29234.0,0.01861991]
[1609476544977,2.9067848,29235.0,29234.0,0.01861991]
[1609476545418,2.71872779,29235.0,29234.0,0.01861991]
[1609476545916,2.9376878,29235.0,29234.0,0.01861991]
[1609476546123,3.32574481,29235.0,29234.0,0.01861991]
[1609476547660,3.32574481,29235.0,29234.0,0.02401887]
[1609476547860,3.32074481,29235.0,29234.0,0.02401887]
[1609476548570,3.40453481,29235.0,29234.0,0.02401887]
[1609476548766,3.36285142,29235.0,29234.0,0.02401887]
[1609476548969,3.40453641,29235.0,29234.0,0.02401887]
[1609476550200,3.40453641,29235.0,29234.0,0.01784987]
[1609476550500,2.9606634,29235.0,29234.0,0.01784987]
[1609476551401,3.40453641,29235.0,29234.0,0.01784987]
[1609476551602,3.26394836,29235.0,29234.0,0.01784987]
[1609476553105,2.82007535,29235.0,29234.0,0.01784987]
[1609476553506,2.77839036,29235.0,29234.0,0.01784987]
[1609476554509,3.22226337,29235.0,29234.0,0.01784987]
[1609476554925,3.02226337,29235.0,29234.0,0.01784987]
[1609476555123,3.22226337,29235.0,29234.0,0.01784987]
[1609476555523,3.26395036,29235.0,29234.0,0.01784987]
[1609476555726,2.63702034,29235.0,29234.0,0.01784987]
[1609476555928,2.73628735,29235.0,29234.0,0.01784987]
[1609476556927,2.69460036,29235.0,29234.0,0.01784987]
[1609476559131,2.69460036,29235.0,29234.0,0.00784987]
[1609476559332,3.24460036,29235.0,29234.0,0.00784987]
[1609476559632,3.68847337,29235.0,29234.0,0.00784987]
[1609476560336,3.73016265,29235.0,29234.0,0.00784987]
[1609476560562,2.73628964,29235.0,29234.0,0.00784987]
[1609476561257,3.18016265,29235.0,29234.0,0.00784987]
[1609476561459,2.73628964,29235.0,29234.0,0.00784987]
[1609476562109,3.18016265,29235.0,29234.0,0.00784987]
[1609476562308,2.73628964,29235.0,29234.0,0.00784987]
[1609476562915,3.18016265,29235.0,29234.0,0.00784987]
[1609476563411,4.08016265,29235.0,29234.0,0.00284987]
[1609476563811,3.63628964,29235.0,29234.0,0.00284987]
[1609476564271,5.58016265,29235.0,29234.0,0.00284987]
[1609476564614,4.08016265,29235.0,29234.0,0.00284987]
[1609476565015,4.15152855,29235.0,29234.0,0.00284987]
[1609476565214,5.30152855,29235.0,29234.0,0.00284987]
[1609476566837,4.15152855,29235.0,29234.0,0.00284987]
[1609476567242,4.90152855,29235.0,29234.0,0.00284987]
[1609476567440,3.55,29234.0,29222.0,0.74126421]
[1609476567645,0.5129,29228.0,29222.0,0.74126421]
[1609476567840,0.92555,29228.0,29222.0,0.74126421]
[1609476568142,0.175,29227.0,29222.0,0.74126421]
[1609476568540,0.175,29227.0,29222.0,0.55612699]
[1609476568940,0.375,29227.0,29222.0,0.55612699]
[1609476569876,0.2,29227.0,29222.0,0.55612699]
[1609476570042,0.92555,29228.0,29222.0,0.55612699]
[1609476570647,0.92555,29228.0,29221.0,0.55612699]
[1609476570951,0.92555,29228.0,29220.0,1.23662699]
[1609476570952,0.475,29227.0,29220.0,1.23662699]
[1609476571872,0.47,29227.0,29221.0,0.91837599]
[1609476572276,0.47,29227.0,29223.0,0.2261978]
[1609476572277,0.27,29227.0,29223.0,0.2261978]
[1609476572476,0.47,29227.0,29223.0,0.78232479]
[1609476573075,0.68390001,29225.0,29224.0,0.01126966]
[1609476573274,0.68390001,29225.0,29224.0,0.00626966]
[1609476573574,0.85390001,29225.0,29224.0,0.00626966]
[1609476573773,1.05390001,29225.0,29224.0,0.00626966]
[1609476573977,0.85390001,29225.0,29224.0,0.00626966]
[1609476574175,1.80390001,29225.0,29224.0,0.00626966]
[1609476574478,1.80390001,29225.0,29224.0,0.0072852]
[1609476574479,2.00390001,29225.0,29224.0,0.0072852]
[1609476575274,2.90390001,29225.0,29224.0,0.0072852]
[1609476575513,2.00390001,29225.0,29224.0,0.0072852]
[1609476576312,1.05390001,29225.0,29224.0,0.0072852]
[1609476576752,0.85390001,29225.0,29224.0,0.0072852]
[1609476578244,0.85390001,29225.0,29224.0,0.01181726]
[1609476578647,1.05390001,29225.0,29224.0,0.01181726]
[1609476579547,0.85390001,29225.0,29224.0,0.01181726]
[1609476580448,1.05390001,29225.0,29224.0,0.01181726]
[1609476581052,0.85390001,29225.0,29224.0,0.01181726]
[1609476581275,1.05390001,29225.0,29224.0,0.01181726]
[1609476581976,0.85390001,29225.0,29224.0,0.01181726]
[1609476582277,0.90390001,29225.0,29224.0,0.01181726]
[1609476582882,0.73390001,29225.0,29224.0,0.37406626]
[1609476583084,0.73390001,29225.0,29224.0,0.93019325]
[1609476583375,0.73390001,29225.0,29224.0,0.37406626]
[1609476583576,0.73390001,29225.0,29224.0,0.93019325]
[1609476583776,0.73390001,29225.0,29224.0,1.11519325]
[1609476584475,0.73390001,29225.0,29224.0,0.55906626]
[1609476586377,0.73390001,29225.0,29224.0,1.11519325]
[1609476586895,0.73390001,29225.0,29224.0,0.55906626]
[1609476587297,0.73390001,29225.0,29224.0,0.36906626]
[1609476587800,0.73390001,29225.0,29224.0,0.00681726]
[1609476589096,0.72283688,29225.0,29224.0,0.36906626]
[1609476591396,0.72098378,29225.0,29224.0,0.36906626]
[1609476592465,0.72098378,29225.0,29224.0,0.00681726]
[1609476594296,0.72067339,29225.0,29224.0,0.00681726]
[1609476595701,0.89435339,29225.0,29224.0,0.00681726]
[1609476595898,1.11435339,29225.0,29224.0,0.00681726]
[1609476596601,1.11842383,29225.0,29224.0,0.00681726]
[1609476597401,1.12452923,29225.0,29224.0,0.00681726]
[1609476599204,1.12045879,29225.0,29224.0,0.00681726]
[1609476600422,1.1245471,29225.0,29224.0,0.00681726]
[1609476600825,1.12045879,29225.0,29224.0,0.00681726]
[1609476602124,1.12045879,29225.0,29224.0,0.00181726]
[1609476605329,1.08736684,29225.0,29224.0,0.00181726]
[1609476605581,0.41669345,29225.0,29224.0,0.92019325]
[1609476605780,0.19669345,29225.0,29224.0,4.76435325]
[1609476606081,0.19468662,29225.0,29224.0,5.49435325]
[1609476606282,0.19058805,29225.0,29224.0,5.52627751]
[1609476606581,0.05,29225.0,29224.0,5.49435325]
[1609476607205,0.05,29225.0,29224.0,5.52627751]
[1609476607606,0.05,29225.0,29224.0,5.49435325]
[1609476608107,0.05,29225.0,29224.0,5.81615627]
[1609476608508,0.05,29225.0,29224.0,5.84808053]
[1609476614757,0.05,29225.0,29224.0,5.84308053]
[1609476615473,0.035,29225.0,29224.0,5.84308053]
[1609476617080,0.035,29225.0,29224.0,2.19308053]
[1609476617675,0.035,29225.0,29224.0,3.72127751]
[1609476617979,0.035,29225.0,29224.0,3.68935325]
[1609476618679,0.035,29225.0,29224.0,4.01115627]
[1609476619677,0.035,29225.0,29224.0,3.48695354]
[1609476620075,0.035,29225.0,29224.0,3.45502928]
[1609476620480,0.035,29225.0,29224.0,3.72127751]
[1609476620901,0.035,29225.0,29224.0,3.68935325]
[1609476621103,0.035,29225.0,29224.0,3.13322626]
[1609476621403,0.02748782,29225.0,29224.0,4.00615627]
[1609476623736,0.02748782,29225.0,29224.0,4.80615627]
[1609476624372,0.01755163,29225.0,29224.0,4.80615627]
[1609476625075,0.01755163,29225.0,29224.0,5.10615627]
[1609476625674,0.01755163,29225.0,29224.0,6.10615627]
[1609476626679,0.01755163,29225.0,29224.0,5.10615627]
[1609476626877,0.01755163,29225.0,29224.0,4.29615627]
[1609476627579,0.01755163,29225.0,29224.0,4.84615627]
[1609476628181,0.14058805,29234.0,29225.0,4.20612699]
[1609476628381,0.14058805,29234.0,29233.0,2.49636111]
[1609476628584,0.14058805,29234.0,29233.0,2.85788411]